bitfinex/quotes_SOLUSD_20250123
["timestamp","ask_amount","ask_price","bid_price","bid_amount"]
[1737637521738,12.15169629,243.11,243.1,0.063]
[1737637522744,12.15169629,243.13,243.1,0.063]
[1737637522933,16.26469629,243.13,243.1,0.063]
[1737637523238,20.0,243.12,243.1,0.063]
[1737637523923,12.15169629,243.17,243.1,138.163]
[1737637524237,12.15169629,243.19,243.11,12.15169629]
[1737637524543,4.1119,243.2,243.11,12.15169629]
[1737637524716,35.92858029,243.19,243.11,12.15169629]
[1737637525130,12.15169629,243.19,243.11,12.15169629]
[1737637525549,16.26369629,243.19,243.11,12.15169629]
[1737637526218,36.26349629,243.21,243.13,12.15169629]
[1737637526541,12.15169629,243.23,243.15,12.15169629]
[1737637526744,16.26269629,243.25,243.15,232.45169629]
[1737637526943,12.15169629,243.27,243.19,12.15169629]
[1737637527146,16.26209629,243.29,243.19,12.15169629]
[1737637527518,20.0,243.26,243.19,232.45169629]
[1737637527715,20.0,243.26,243.19,236.56359629]
[1737637527944,20.0,243.26,243.19,232.45169629]
[1737637528163,23.776884,243.26,243.19,220.3]
[1737637528384,20.0,243.2,243.19,82.2]
[1737637529047,12.15169629,243.23,243.19,82.2]
[1737637529345,12.15169629,243.27,243.19,220.3]
[1737637529545,12.15169629,243.27,243.19,232.45169629]
[1737637529922,12.15169629,243.27,243.19,236.56359629]
[1737637530741,12.15169629,243.31,243.23,12.15169629]
[1737637530939,12.15169629,243.31,243.23,232.45169629]
[1737637532034,12.15169629,243.31,243.23,236.56289629]
[1737637532260,4.1099,243.32,243.23,236.56289629]
[1737637532743,12.15169629,243.33,243.23,236.56289629]
[1737637532946,12.15169629,243.33,243.25,12.15169629]
[1737637533139,16.26129629,243.33,243.25,12.15169629]
[1737637534131,32.15169629,243.28,243.24,83.7591]
[1737637534333,20.0,243.27,243.24,82.2]
[1737637536466,4.1108,243.26,243.24,82.2]
[1737637536630,16.26249629,243.26,243.24,82.2]
[1737637537330,20.0,243.27,243.24,82.2]
[1737637537531,20.0,243.27,243.24,220.3]
[1737637537832,12.15169629,243.28,243.24,220.3]
[1737637538041,40.03878029,243.3,243.24,220.3]
[1737637538239,0.063,243.27,243.24,220.3]
[1737637540259,4.1737,243.27,243.24,220.3]
[1737637540952,12.15169629,243.26,243.24,220.3]
[1737637542872,0.063,243.27,243.24,220.3]
[1737637543447,0.063,243.27,243.24,224.4111]
[1737637543648,0.063,243.27,243.25,12.15169629]
[1737637544358,0.063,243.27,243.25,232.45169629]
[1737637545047,0.063,243.27,243.26,4.1108]
[1737637546268,0.063,243.27,243.26,224.4108]
[1737637547143,0.063,243.27,243.26,231.6258]
[1737637547460,0.063,243.27,243.26,232.1871]
[1737637548272,0.063,243.27,243.26,233.1871]
[1737637548441,0.063,243.42,243.31,221.3]
[1737637548641,0.063,243.42,243.36,232.45169629]
[1737637549163,0.063,243.42,243.36,236.56069629]
[1737637549970,0.063,243.42,243.38,12.15169629]
[1737637550338,0.063,243.42,243.38,231.85169629]
[1737637550967,0.063,243.42,243.38,220.3]
[1737637552869,0.063,243.42,243.38,232.45169629]
[1737637553073,0.063,243.42,243.4,12.15169629]
[1737637553257,0.063,243.42,243.4,16.25999629]
[1737637553773,0.063,243.42,243.4,12.15169629]
[1737637555380,0.063,243.42,243.4,220.3]
[1737637556889,4.1711,243.42,243.4,220.3]
[1737637557677,16.32279629,243.42,243.4,82.2]
[1737637558362,23.776884,243.38,243.31,220.3]
[1737637558562,32.15169629,243.35,243.27,138.1]
[1737637559498,4.1094,243.34,243.27,138.1]
[1737637559869,32.15169629,243.35,243.27,150.25169629]
[1737637560072,36.26099629,243.35,243.27,150.25169629]
[1737637561380,20.0,243.35,243.27,150.25169629]
[1737637561588,12.15169629,243.37,243.27,154.36219629]
[1737637561899,16.26069629,243.37,243.27,154.36219629]
[1737637562192,12.15169629,243.35,243.27,138.1]
[1737637562494,20.0,243.36,243.26,138.13]
[1737637562495,20.0,243.28,243.26,138.13]
[1737637563002,12.15169629,243.27,243.26,138.13]
[1737637563384,6.3162,243.33,243.26,138.13]
[1737637563385,12.15169629,243.29,243.26,138.13]
[1737637563711,12.15169629,243.31,243.26,220.33]
[1737637563994,12.15169629,243.35,243.26,224.4407]
[1737637564201,12.15169629,243.38,243.27,232.45169629]
[1737637564768,16.26059629,243.38,243.29,12.15169629]
[1737637564996,20.0,243.37,243.31,232.45169629]
[1737637565199,16.26029629,243.4,243.31,232.45169629]
[1737637565698,16.26029629,243.4,243.31,236.56159629]
[1737637565998,12.15169629,243.4,243.31,236.56159629]
[1737637566197,4.1712,243.42,243.33,232.45169629]
[1737637566198,12.21469629,243.42,243.33,232.45169629]
[1737637566375,0.063,243.42,243.35,12.15169629]
[1737637568374,0.063,243.42,243.35,236.56079629]
[1737637569794,0.063,243.42,243.37,232.45169629]
[1737637569998,0.063,243.42,243.41,12.15169629]
[1737637570207,0.063,243.42,243.41,232.45169629]
[1737637571903,0.063,243.42,243.41,220.3]
[1737637574905,0.063,243.42,243.41,232.45169629]
[1737637575872,0.063,243.42,243.41,257.86418029]
[1737637576182,0.0001,243.42,243.41,257.86418029]
[1737637576711,0.03,243.46,243.45,246.076784]
[1737637577095,0.03,243.46,243.45,258.22848029]
[1737637577830,0.03,243.46,243.45,265.50270563]
[1737637578023,0.063,243.56,243.48,1.0]
[1737637578205,0.063,243.56,243.5,240.72582163]
[1737637578511,0.063,243.56,243.5,272.22860563]
[1737637579494,0.063,243.56,243.5,247.45172163]
[1737637580321,0.063,243.56,243.5,220.2999]
[1737637580693,0.063,243.56,243.5,239.72582163]
[1737637583599,0.063,243.56,243.5,240.72582163]
[1737637583917,0.063,243.56,243.54,21.0]
[1737637584122,0.063,243.56,243.55,23.53182163]
[1737637584617,0.063,243.56,243.55,25.07012163]
[1737637586937,0.063,243.56,243.55,19.42592163]
[1737637587941,19.48892163,243.65,243.55,19.42592163]
[1737637587942,0.063,243.65,243.58,23.776884]
[1737637588115,0.063,243.65,243.64,19.42592163]
[1737637588547,0.063,243.65,243.64,264.47270563]
[1737637588823,0.0001,243.65,243.64,265.47270563]
[1737637590429,0.0001,243.65,243.64,269.57710563]
[1737637590621,0.0001,243.65,243.64,243.80022163]
[1737637591540,0.0001,243.65,243.64,268.57710563]
[1737637592343,0.0001,243.67,243.66,265.046784]
[1737637592552,0.0001,243.67,243.66,285.47270563]
[1737637592843,0.063,243.71,243.7,1.0]
[1737637593043,0.03,243.83,243.7,1.0]
[1737637593044,0.03,243.83,243.75,239.69572163]
[1737637593236,0.03,243.83,243.75,264.47260563]
[1737637594045,0.03,243.83,243.78,23.776884]
[1737637594238,0.03,243.83,243.82,239.69572163]
[1737637594417,0.03,243.83,243.82,243.79702163]
[1737637596222,0.03,243.83,243.82,244.79702163]
[1737637596724,0.03,243.83,243.82,245.79702163]
[1737637596928,0.03,243.83,243.82,243.79702163]
[1737637599443,19.42592163,243.99,243.85,1.0]
[1737637599660,19.42592163,243.99,243.89,239.66572163]
[1737637600144,23.52442163,243.99,243.89,239.66572163]
[1737637600344,7.8669,244.01,243.89,239.66572163]
[1737637600345,31.39102163,244.01,243.89,239.66572163]
[1737637600663,27.29282163,244.01,243.89,243.76592163]
[1737637601157,19.42592163,243.99,243.89,243.76592163]
[1737637601367,4.0999,243.91,243.89,138.0398]
[1737637601544,19.42592163,243.92,243.89,138.0398]
[1737637601963,4.0995,243.93,243.89,138.0398]
[1737637602178,23.58892163,243.9,243.89,138.0398]
[1737637602460,19.48892163,243.9,243.89,138.0398]
[1737637603040,0.063,243.9,243.89,138.0398]
[1737637603256,4.1002,243.89,243.82,157.46572163]
[1737637603459,19.42592163,243.86,243.82,138.0398]
[1737637604651,4.1008,243.85,243.82,138.0398]
[1737637605470,4.1008,243.85,243.78,138.0398]
[1737637606167,4.1006,243.87,243.78,157.46572163]
[1737637607688,4.1006,243.87,243.78,243.76772163]
[1737637608181,4.1006,243.87,243.78,239.66572163]
[1737637608387,4.1636,243.87,243.78,239.66572163]
[1737637609575,0.063,243.87,243.81,240.2398]
[1737637609789,0.063,243.87,243.82,19.42592163]
[1737637610100,4.1636,243.87,243.82,138.0398]
[1737637610273,19.42592163,243.86,243.82,138.0398]
[1737637611797,0.063,243.87,243.82,138.0398]
[1737637611971,4.1636,243.87,243.82,138.0398]
[1737637614981,0.063,243.87,243.82,138.0398]
[1737637615187,4.1636,243.87,243.82,138.0398]
[1737637621792,12.11386581,243.85,243.81,138.0398]
[1737637622115,12.11386581,243.83,243.81,138.0398]
[1737637622419,6.5065,243.82,243.81,138.0398]
[1737637623216,34.384684,243.82,243.81,138.0398]
[1737637624718,10.6078,243.82,243.81,138.0398]
[1737637625015,34.384684,243.82,243.81,138.0398]
[1737637625589,23.776884,243.81,243.78,0.03]
[1737637625815,35.89074981,243.79,243.78,0.03]
[1737637626125,20.0,243.75,243.7,138.0398]
[1737637626412,20.8612,243.82,243.7,138.0398]
[1737637626413,35.89074981,243.74,243.7,138.0398]
[1737637627295,12.11386581,243.74,243.7,138.0398]
[1737637627614,12.11386581,243.76,243.7,138.0398]
[1737637628814,4.1025,243.75,243.7,138.0398]
[1737637629115,12.11386581,243.73,243.7,138.0398]
[1737637630511,23.776884,243.72,243.7,138.0398]
[1737637630715,12.11386581,243.71,243.7,138.0398]
[1737637630923,23.776884,243.7,243.67,220.2398]
[1737637631222,35.89074981,243.68,243.67,82.2]
[1737637631725,12.11386581,243.68,243.67,82.2]
[1737637632293,23.776884,243.64,243.63,0.03]
[1737637632604,35.89074981,243.64,243.63,0.03]
[1737637632811,39.99514981,243.64,243.63,0.03]
[1737637633325,20.0,243.6,243.56,138.0698]
[1737637633624,35.89074981,243.57,243.56,138.0698]
[1737637634013,35.89074981,243.57,243.56,0.03]
[1737637634329,20.0,243.54,243.53,0.03]
[1737637634536,55.89074981,243.54,243.53,0.03]
[1737637635037,59.99684981,243.54,243.53,0.03]
[1737637635393,12.11386581,243.54,243.53,0.03]
[1737637635594,12.11386581,243.56,243.53,138.0698]
[1737637635812,19.43070721,243.58,243.53,138.0698]
[1737637638720,4.105,243.61,243.53,157.50050721]
[1737637639120,23.53570721,243.61,243.53,157.50050721]
[1737637639434,4.105,243.61,243.53,157.50050721]
[1737637639622,23.53500721,243.65,243.55,19.43070721]
[1737637640011,19.43070721,243.67,243.59,239.67050721]
[1737637640235,19.43070721,243.69,243.61,19.43070721]
[1737637640428,1.5083,243.73,243.63,19.43070721]
[1737637640429,23.53390721,243.71,243.63,19.43070721]
[1737637641312,4.1032,243.71,243.63,19.43070721]
[1737637641513,19.43070721,243.73,243.63,19.43070721]
[1737637641713,19.43070721,243.73,243.65,19.43070721]
[1737637642248,4.1028,243.74,243.65,239.67050721]
[1737637643314,19.43070721,243.71,243.65,220.2398]
[1737637643644,19.43070721,243.66,243.65,220.2398]
[1737637643830,23.776884,243.62,243.55,138.0398]
[1737637644037,19.43070721,243.56,243.55,138.0398]
[1737637644943,19.43070721,243.58,243.55,138.0398]
[1737637645117,19.43070721,243.6,243.55,138.0398]
[1737637645318,19.43070721,243.58,243.55,138.0398]
[1737637646428,19.43070721,243.6,243.55,138.0398]
[1737637646610,19.43070721,243.62,243.55,138.0398]
[1737637647113,23.776884,243.64,243.55,138.0398]
[1737637647114,19.43070721,243.6,243.55,138.0398]
[1737637647538,4.1052,243.59,243.55,138.0398]
[1737637648242,19.43070721,243.58,243.55,138.0398]
[1737637648726,19.43070721,243.56,243.55,138.0398]
[1737637649953,47.31329121,243.56,243.55,138.0398]
[1737637650250,23.53640721,243.56,243.55,138.0398]
[1737637651639,19.43070721,243.56,243.55,138.0398]
[1737637651842,19.43070721,243.58,243.55,138.0398]
[1737637654024,19.43070721,243.64,243.55,220.2398]
[1737637654558,19.43070721,243.62,243.55,220.2398]
[1737637654743,20.0,243.59,243.55,220.2398]
[1737637655151,19.43070721,243.58,243.55,220.2398]
[1737637655956,23.53610721,243.58,243.55,220.2398]
[1737637658161,63.20759121,243.56,243.53,0.03]
[1737637658338,43.20759121,243.54,243.53,0.03]
[1737637658864,19.43070721,243.54,243.53,0.03]
[1737637660263,19.43070721,243.56,243.53,138.0698]
[1737637660569,19.43070721,243.58,243.53,220.2698]
[1737637661067,19.43070721,243.6,243.53,220.2698]
[1737637661360,19.43070721,243.62,243.53,220.2698]
[1737637662733,19.43070721,243.62,243.53,224.376]
[1737637663634,19.43070721,243.64,243.54,19.43070721]
[1737637663954,23.53490721,243.66,243.56,19.43070721]
[1737637664162,19.43070721,243.68,243.58,239.67050721]
[1737637664854,19.43070721,243.68,243.59,4.1052]
[1737637666259,23.53440721,243.68,243.59,4.1052]
[1737637666867,23.53440721,243.68,243.58,239.67050721]
[1737637667073,19.43070721,243.64,243.58,220.2398]
[1737637668254,4.1045,243.63,243.58,220.2398]
[1737637669081,19.43070721,243.62,243.58,220.2398]
[1737637669576,19.43070721,243.6,243.58,220.2398]
[1737637669789,19.43070721,243.6,243.53,0.03]
[1737637669790,19.43070721,243.6,243.53,220.2698]
[1737637669992,19.43070721,243.57,243.53,220.2698]
[1737637670168,4.1061,243.54,243.53,220.2698]
[1737637670675,19.43070721,243.55,243.53,220.2698]
[1737637670881,19.43070721,243.57,243.53,220.2698]
[1737637671052,23.53610721,243.59,243.53,220.2698]
[1737637671675,19.43070721,243.63,243.54,19.43070721]
[1737637671868,19.43070721,243.63,243.54,239.67050721]
[1737637672784,19.43070721,243.63,243.55,4.1059]
[1737637673484,23.53530721,243.63,243.54,243.77650721]
[1737637676477,19.43070721,243.63,243.54,243.77650721]
[1737637676790,4.1044,243.64,243.54,243.77650721]
[1737637677479,4.1044,243.64,243.56,23.53640721]
[1737637677669,23.53490721,243.65,243.56,23.53640721]
[1737637678382,4.1042,243.65,243.56,23.53640721]
[1737637678578,23.53490721,243.65,243.56,23.53640721]
[1737637679988,19.43070721,243.65,243.56,23.53640721]
[1737637680175,19.43070721,243.68,243.59,239.67050721]
[1737637681176,19.43070721,243.68,243.59,220.2398]
[1737637681999,4.1039,243.67,243.59,220.2398]
[1737637682180,19.43070721,243.64,243.59,220.2398]
[1737637682502,19.43070721,243.6,243.59,220.2398]
[1737637682797,19.43070721,243.62,243.59,220.2398]
[1737637683498,19.43070721,243.6,243.59,82.2]
[1737637683989,23.53570721,243.6,243.59,82.2]
[1737637684295,47.31259121,243.6,243.59,82.2]
[1737637685103,19.43070721,243.6,243.59,82.2]
[1737637685268,19.43070721,243.62,243.59,82.2]
[1737637685473,19.43070721,243.6,243.59,82.2]
[1737637686197,23.53570721,243.6,243.59,82.2]
[1737637690905,23.776884,243.59,243.54,0.03]
[1737637691209,23.776884,243.55,243.54,0.03]
[1737637691393,19.43070721,243.56,243.54,0.03]
[1737637691603,23.53650721,243.56,243.54,0.03]
[1737637691894,4.1058,243.56,243.54,0.03]
[1737637692107,23.776884,243.57,243.54,0.03]
[1737637692286,16.24815698,243.58,243.54,0.03]
[1737637694408,23.776884,243.57,243.54,0.03]
[1737637695113,4.1057,243.56,243.54,138.0698]
[1737637695477,23.776884,243.55,243.54,138.0698]
[1737637696704,27.882784,243.55,243.54,138.0698]
[1737637697518,12.14265698,243.56,243.54,138.0698]
[1737637697719,4.1057,243.57,243.54,138.0698]
[1737637697904,27.882584,243.57,243.54,138.0698]
[1737637698217,12.14265698,243.58,243.54,138.0698]
[1737637698396,16.24805698,243.58,243.54,138.0698]
[1737637700017,20.0,243.55,243.54,138.0698]
[1737637700196,23.776884,243.55,243.54,138.0698]
[1737637700520,43.776884,243.54,243.53,0.03]
[1737637700824,55.91954098,243.54,243.53,0.03]
[1737637701008,61.02564098,243.54,243.53,0.03]
[1737637701201,60.02564098,243.54,243.53,0.03]
[1737637705121,16.31145698,243.56,243.53,138.0698]
[1737637705332,0.063,243.56,243.53,138.0698]
[1737637705635,4.1687,243.56,243.53,138.0698]
[1737637705931,23.776884,243.55,243.53,138.0698]
[1737637706094,32.14265698,243.54,243.53,138.0698]
[1737637706303,55.91954098,243.54,243.53,0.03]
[1737637707001,20.0,243.54,243.53,0.03]
[1737637707820,24.1061,243.54,243.53,0.03]
[1737637708026,23.776884,243.55,243.53,0.03]
[1737637708328,27.882784,243.55,243.53,0.03]
[1737637708911,12.20565698,243.56,243.53,0.03]
[1737637709220,0.063,243.56,243.53,0.03]
[1737637709527,0.063,243.56,243.53,220.2698]
[1737637711324,4.1688,243.56,243.53,220.2698]
[1737637711822,0.063,243.56,243.53,220.2698]
[1737637712822,0.063,243.56,243.53,221.8569]
[1737637713633,0.063,243.56,243.53,233.99955698]
[1737637714028,0.063,243.56,243.55,232.38245698]
[1737637716134,0.063,243.56,243.55,220.2398]
[1737637717039,4.1687,243.56,243.55,220.2398]
[1737637717651,4.1687,243.56,243.53,138.0698]
[1737637717824,16.31135698,243.56,243.53,138.0698]
[1737637718139,16.31135698,243.56,243.53,0.03]
[1737637718326,12.14265698,243.54,243.53,0.03]
[1737637720344,4.1061,243.54,243.53,0.03]
[1737637721437,12.20565698,243.56,243.53,0.03]
[1737637721621,4.1059,243.55,243.53,0.03]
[1737637722738,23.776884,243.55,243.53,0.03]
[1737637722940,12.20565698,243.56,243.53,0.03]
[1737637723245,23.776884,243.55,243.53,0.03]
[1737637723434,12.14265698,243.54,243.53,0.03]
[1737637724128,35.91954098,243.54,243.53,0.03]
[1737637725146,20.0,243.5,243.45,0.03]
[1737637725450,23.776884,243.46,243.45,0.03]
[1737637725634,12.14265698,243.47,243.45,0.03]
[1737637726029,12.14265698,243.49,243.45,0.03]
[1737637726640,20.0,243.5,243.45,138.13]
[1737637726837,12.14265698,243.51,243.45,138.13]
[1737637727047,12.14265698,243.53,243.45,232.47265698]
[1737637727254,16.24855698,243.55,243.45,232.47265698]
[1737637728025,16.24855698,243.55,243.45,236.58015698]
[1737637729751,16.24855698,243.55,243.45,232.47265698]
[1737637734046,16.24855698,243.55,243.45,236.58015698]
[1737637734338,16.24855698,243.55,243.47,12.14265698]
[1737637736057,4.1062,243.53,243.46,1.6275]
[1737637736356,23.776884,243.52,243.46,1.6275]
[1737637736560,12.14265698,243.51,243.46,221.9275]
[1737637736732,23.776884,243.52,243.46,221.9275]
[1737637737735,4.1066,243.51,243.46,220.3]
[1737637737940,23.776884,243.5,243.46,220.3]
[1737637738141,12.14265698,243.47,243.45,138.13]
[1737637738438,12.14265698,243.47,243.45,0.03]
[1737637739265,23.776884,243.46,243.45,0.03]
[1737637739752,27.884284,243.46,243.45,0.03]
[1737637739957,4.1074,243.46,243.45,0.03]
[1737637740346,16.24985698,243.47,243.45,138.13]
[1737637740747,23.776884,243.46,243.45,138.13]
[1737637741354,16.24945698,243.5,243.45,138.13]
[1737637741547,12.14265698,243.5,243.45,138.13]
[1737637742161,4.1066,243.51,243.45,138.13]
[1737637743647,12.14265698,243.52,243.45,220.33]
[1737637743849,4.169,243.55,243.47,12.14265698]
[1737637744159,0.063,243.55,243.49,12.14265698]
[1737637744356,0.063,243.55,243.51,232.44265698]
[1737637744755,0.063,243.55,243.53,12.14265698]
[1737637745341,0.063,243.55,243.53,232.44265698]
[1737637745546,0.063,243.55,243.53,220.3]
[1737637745960,4.169,243.55,243.53,220.3]
[1737637748474,4.169,243.55,243.49,138.1]
[1737637749264,0.063,243.55,243.49,138.1]
[1737637749472,0.063,243.55,243.49,150.24265698]
[1737637749786,4.1689,243.55,243.49,138.1]
[1737637749971,0.063,243.55,243.49,138.1]
[1737637750459,12.14265698,243.54,243.49,138.1]
[1737637750662,12.14265698,243.54,243.49,220.3]
[1737637752573,4.1062,243.53,243.49,219.28]
[1737637752769,23.776884,243.52,243.49,219.28]
[1737637752973,12.14265698,243.5,243.49,82.2]
[1737637753987,20.0,243.5,243.49,82.2]
[1737637754660,24.1067,243.5,243.49,82.2]
[1737637754972,23.776884,243.49,243.45,137.11]
[1737637755367,12.14265698,243.46,243.45,137.11]
[1737637755580,12.14265698,243.48,243.45,137.11]
[1737637756595,4.1072,243.47,243.45,137.11]
[1737637757697,12.14265698,243.5,243.45,137.11]
[1737637757995,16.24945698,243.5,243.45,137.11]
[1737637758883,16.24915698,243.52,243.45,219.31]
[1737637759085,4.1062,243.53,243.45,223.4175]
[1737637759297,4.1062,243.53,243.45,219.31]
[1737637759799,12.14265698,243.52,243.45,219.31]
[1737637759977,12.14265698,243.5,243.45,219.31]
[1737637760372,32.14265698,243.5,243.45,219.31]
[1737637760996,4.1069,243.49,243.45,219.31]
[1737637761683,55.91954098,243.46,243.45,82.23]
[1737637763097,60.02694098,243.46,243.45,82.23]
[1737637767081,60.02694098,243.46,243.45,0.03]
[1737637768283,61.02694098,243.46,243.45,0.0001]
[1737637768603,60.02694098,243.46,243.45,0.0001]
[1737637770276,61.02694098,243.46,243.45,0.0001]
[1737637771404,60.02694098,243.46,243.45,0.0001]
[1737637771703,61.02694098,243.46,243.45,0.0001]
[1737637772806,35.91954098,243.4,243.39,0.0001]
[1737637774202,40.02794098,243.4,243.39,0.0001]
[1737637775390,41.02794098,243.4,243.39,0.0001]
[1737637776106,65.67794098,243.4,243.39,0.0001]
[1737637776811,65.67794098,243.4,243.31,0.03]
[1737637776812,20.0,243.36,243.31,0.03]
[1737637776980,35.91954098,243.32,243.31,0.03]
[1737637777507,35.91954098,243.32,243.29,0.0001]
[1737637777508,23.776884,243.31,243.29,0.0001]
[1737637777719,35.91954098,243.3,243.29,0.0001]
[1737637778712,40.02964098,243.3,243.29,0.0001]
[1737637778918,16.25275698,243.3,243.29,0.0001]
[1737637779100,4.1101,243.3,243.29,0.0001]
[1737637780212,20.0,243.3,243.29,0.0001]
[1737637781814,24.1101,243.3,243.29,0.0001]
[1737637784791,36.25275698,243.3,243.29,0.0001]
[1737637785024,60.02964098,243.3,243.29,0.0001]
[1737637785393,60.02964098,243.3,243.28,0.0001]
[1737637785600,23.776884,243.29,243.28,0.0001]
[1737637786394,27.887184,243.29,243.28,0.0001]
[1737637787694,35.6797974,243.29,243.28,0.0001]
[1737637789217,43.776884,243.26,243.22,0.03]
[1737637789423,7.7926134,243.23,243.22,0.03]
[1737637789719,35.95503517,243.23,243.22,0.03]
[1737637790520,23.776884,243.23,243.22,0.03]
[1737637791722,27.888184,243.23,243.22,0.03]
[1737637792617,20.0,243.23,243.22,0.03]
[1737637793513,4.1108,243.26,243.22,0.03]
[1737637793714,23.776884,243.25,243.22,0.03]
[1737637794929,12.17815117,243.27,243.22,137.11]
[1737637796032,7.8606,243.31,243.22,219.31]
[1737637796033,12.17815117,243.31,243.22,219.31]
[1737637796330,12.17815117,243.33,243.23,12.17815117]
[1737637796514,16.28745117,243.35,243.25,12.17815117]
[1737637797117,0.063,243.29,243.25,231.45815117]
[1737637797599,0.063,243.29,243.25,235.56905117]
[1737637799127,0.063,243.29,243.25,219.28]
[1737637800429,4.1733,243.29,243.25,219.28]
[1737637801221,0.063,243.29,243.25,219.28]
[1737637802334,4.1733,243.29,243.25,219.28]
[1737637802527,23.776884,243.28,243.25,219.28]
[1737637802853,23.776884,243.26,243.22,137.11]
[1737637803960,0.063,243.29,243.22,235.59955117]
[1737637804930,20.0,243.26,243.22,219.31]
[1737637805129,43.776884,243.26,243.22,219.31]
[1737637806031,4.1109,243.25,243.22,219.31]
[1737637807457,23.776884,243.24,243.22,0.03]
[1737637807850,35.95503517,243.23,243.22,0.03]
[1737637809237,40.06633517,243.23,243.22,0.03]
[1737637811763,35.68297138,243.23,243.22,0.03]
[1737637815266,35.68297138,243.23,243.22,0.0001]
[1737637815769,20.0,243.19,243.16,0.03]
[1737637815962,7.79478738,243.17,243.16,0.03]
[1737637816159,31.57167138,243.17,243.16,0.03]
[1737637817599,35.68397138,243.17,243.16,0.03]
[1737637818415,35.68397138,243.17,243.16,0.0001]
[1737637820813,20.0,243.09,243.06,218.3542]
[1737637826510,24.1137,243.09,243.06,218.3542]
[1737637832230,20.0,243.06,243.05,0.063]
[1737637832514,23.776884,243.05,243.04,0.0001]
[1737637832688,31.57167138,243.05,243.04,0.0001]
[1737637834014,35.68597138,243.05,243.04,0.0001]
[1737637835209,37.33253438,243.05,243.04,0.0001]
[1737637835511,35.68597138,243.05,243.04,0.0001]
[1737637835890,11.90908738,243.05,243.04,0.0001]
[1737637840617,51.383884,243.03,243.02,0.0001]
[1737637840790,1.0,243.01,242.97,0.03]
[1737637840995,20.0,242.95,242.91,0.03]
[1737637841214,7.79478738,242.92,242.91,0.03]
[1737637842234,11.91128738,242.92,242.91,0.03]
[1737637843540,35.68817138,242.92,242.91,0.03]
[1737637845318,11.91128738,242.92,242.91,0.03]
[1737637847637,35.68817138,242.92,242.91,0.03]
[1737637848153,35.68817138,242.92,242.81,0.03]
[1737637848452,20.0,242.82,242.81,0.03]
[1737637848652,7.79478738,242.85,242.81,0.03]
[1737637849557,7.79478738,242.83,242.81,0.03]
[1737637851460,4.1182,242.82,242.81,0.03]
[1737637853450,7.79478738,242.85,242.81,0.03]
[1737637854054,20.0,242.82,242.81,0.03]
[1737637854427,11.91218738,242.87,242.81,0.03]
[1737637854649,7.79478738,242.87,242.81,0.03]
[1737637854853,7.79478738,242.89,242.81,0.03]
[1737637855048,7.79478738,242.93,242.84,144.87478738]
[1737637855438,11.91128738,242.93,242.84,144.87478738]
[1737637855642,7.79478738,242.91,242.84,137.08]
[1737637856167,7.79478738,242.86,242.81,0.03]
[1737637857563,4.1177,242.85,242.81,0.03]
[1737637858667,12.21538333,242.9,242.81,149.32538333]
[1737637858871,16.39508333,242.92,242.83,12.21538333]
[1737637859571,20.0,242.89,242.83,12.21538333]
[1737637860673,12.21538333,242.9,242.81,149.32538333]
[1737637861770,16.33238333,242.9,242.81,149.32538333]
[1737637862461,20.0,242.89,242.81,153.44368333]
[1737637863756,24.117,242.89,242.81,153.44368333]
[1737637864383,24.117,242.89,242.81,234.71788333]
[1737637864881,20.0,242.89,242.81,234.71788333]
[1737637867264,16.33228333,242.9,242.81,234.71788333]
[1737637867654,12.21538333,242.88,242.81,218.3842]
[1737637868563,16.33228333,242.9,242.82,12.21538333]
[1737637868762,0.063,242.91,242.84,12.21538333]